{"text_format":"1","workbook":"xlsx","n_sheets":15,"sheets":["Working","ChangeLog","Setup","Players","Matrix","Table","Round1","Round2","Round3","Round4","Round5","Round6","Round7","Round8","Round9"],"not_rendered":{"charts":0,"images":0,"macros":1,"external_links":0,"defined_names":15,"comments":1,"pivot_tables":0},"unopened":[],"bounds":{"document_bytes":16777216,"sheet_cells":100000,"rows_first":2000,"rows_last":500,"rows_between":2000,"halvings":0,"cell_chars":16384,"cell_head_chars":4096},"cells_cut":0,"cells_raw":0,"read":"whole","date_system":"1900"}

{"sheet":"Working","index":0,"n_rows":39,"n_cols":28,"rows_kept":39,"cut":false,"hidden":false,"merged":[]}
[null,null,null,null,null,null,null,null,null,null,null,null,null,null,null,null,null,null,null,null,null,null,null,null,null,"Latest Rd:",6]
[null,null,null,null,null,null,null,null,null,null,null,null,null,null,null,null,null,null,null,null,null,null,null,null,null,"Players:",40]
[null,null,null,null,null,null,null,null,null,null,null,null,null,null,null,null,null,null,null,null,null,null,null,null,null,"Display",14,"Columns"]
[null,null,null,null,null,null,null,null,null,null,null,null,null,null,null,null,null,null,null,null,null,null,null,null,null,"Enter",6,"Columns"]
[null,null,null,null,null,null,null,null,null,null,null,null,null,null,null,0]
[null,null,null,null,null,null,null,null,null,null,null,null,null,null,null,0]
[null,null,null,null,null,null,null,null,null,null,null,null,null,null,null,0]
[]
[]
[]
[null,null,null,null,null,null,null,null,null,null,null,null,null,null,null,0]
[null,null,null,null,null,null,null,null,null,null,null,null,null,null,null,0]
[]
[]
[null,null,null,null,null,null,null,null,null,null,null,null,null,null,null,0]
[]
[null,null,null,null,null,null,null,null,null,null,null,null,null,null,null,0]
[]
[null,null,null,null,null,null,null,null,null,null,null,null,null,null,null,0]
[]
[]
[]
[null,null,null,null,null,null,null,null,null,null,null,null,null,null,null,0]
[]
[null,null,null,null,null,null,null,null,null,null,null,null,null,null,null,0]
[null,null,null,null,null,null,null,null,null,null,null,null,null,null,null,0]
[]
[]
[null,null,null,null,null,null,null,null,null,null,null,null,null,null,null,0]
[null,null,null,null,null,null,null,null,null,null,null,null,null,null,null,0]
[null,null,null,null,null,null,null,null,null,null,null,null,null,null,null,0]
[]
[]
[null,null,null,null,null,null,null,null,null,null,null,null,null,null,null,0]
[null,null,null,null,null,null,null,null,null,null,null,null,null,null,null,0]
[null,null,null,null,null,null,null,null,null,null,null,null,null,null,null,0]
[null,null,null,null,null,null,null,null,null,null,null,null,null,null,null,0]
[null,null,null,null,null,null,null,null,null,null,null,null,null,null,null,0]
[null,null,null,null,null,null,null,null,null,null,null,null,null,null,null,0]

{"sheet":"ChangeLog","index":1,"n_rows":17,"n_cols":4,"rows_kept":17,"cut":false,"hidden":false,"merged":[]}
[null,"This spreadsheet is based on one by Kaper on an Excel forum: http://www.excelforum.com/excel-programming-vba-macros/1105569-swiss-pairing-algorithm-in-excel-to-organize-a-chess-tournament.html"]
[null,"Massive thanks due to him!"]
[null,"The original was used for Chess, and it has been adapted to work for Blood Bowl by sann0638 (Mike Davies)"]
[]
["Version","Summary","Date","Notes"]
["1.0","Multi-sheet version of the chess","2016-06-19"]
[1.1000000000000001,"Remove Black and White stuff","2016-06-19"]
[1.2,"Change to TDs to generate points","2016-06-19"]
[null,"Got the Swiss working properly","2016-06-19","Published."]
[1.3,"More help information.","2016-06-20"]
[null,"Added Table","2016-06-20"]
[null,"Added Opponent Score","2016-06-20"]
[2.1,"Big overhaul to where info stored","2016-06-21"]
[2.2000000000000002,"Putting in the Score formula","2016-06-21","Published."]
[3.1,"Added all tiebreaker columns","2016-06-22"]
[null,"Realised opponent score was wrong, fixed it.","2016-06-22"]
[3.2,"Fixed problem with sorting the table.",null,"Published."]

{"sheet":"Setup","index":2,"n_rows":36,"n_cols":10,"rows_kept":36,"cut":false,"hidden":false,"merged":[]}
["SCORING SETUP"]
[]
["Points for…",null,null,null,null,"Entry Data"]
["Win by at least 2 TD",9,null,null,null,"Player"]
["Win by 1 TD",6,null,null,null,"Points"]
["Draw",3,null,null,null,"TD",null,null,null,"Buttons for running a tournament:"]
["Lose by 1 TD",1,null,null,null,"Cas"]
["Lose by at least 2 TD",0,null,null,null,"Bonus1","Bonus1 Name"]
[null,null,null,null,null,"Bonus2","Bonus2 Name"]
["Assume 1 Point per TD/Cas/Etc up to…"]
["Max TD Bonus Pts",3]
["Max Cas Bonus Pts",3]
["Max Bonus1 Bonus Pts",0]
["Max Bonus2 Bonus Pts",0]
[]
["Test Scoring System Here"]
["Your Score (required)",2]
["Opponent Score (required)",4,null,null,null,"Displayed Data"]
["Your Cas (optional)",3,null,null,null,"Player","Player"]
["Your Bonus 1 (optional)",null,null,null,null,"Points","Points"]
["Your Bonus 2 (optional)",null,null,null,null,"TD For","TD For"]
[null,null,null,null,null,"Cas For","Cas For"]
["Your Points",{"$f":"fctScore(B17,B18,B19,B20,B21)","v":5},null,null,null,{"$f":"F8","v":"Bonus1"},{"$f":"F23","v":"Bonus1"}]
[null,null,null,null,null,{"$f":"F9","v":"Bonus2"},{"$f":"F24","v":"Bonus2"}]
["Tie Breaks - Not currently implemented",null,null,null,null,"TD Against","TD Against"]
["Points are first, then choose the order",null,null,null,null,"Cas Against","Cas Against"]
["Bonus 1",null,null,null,null,"TD Net","TD Net"]
["Bonus 2",null,null,null,null,"Cas Net","Cas Net"]
["TD for",null,null,null,null,"Wins","Wins"]
["Net TD",null,null,null,null,"Draws","Draws"]
["Cas for",null,null,null,null,"Losses","Losses"]
["Net Cas",null,null,null,null,"Opp Score","Opp Score"]
["Wins"]
["Draws"]
["Random"]
["Opponent Score"]

{"sheet":"Players","index":3,"n_rows":51,"n_cols":2,"rows_kept":51,"cut":false,"hidden":false,"merged":[]}
["Ord","Name"]
[{"$f":"IF(B2=\"\",\"\",MAX(A$1:A1)+1)","v":1},"Player1"]
[{"$f":"IF(B3=\"\",\"\",MAX(A$1:A2)+1)","v":2},"Player2"]
[{"$f":"IF(B4=\"\",\"\",MAX(A$1:A3)+1)","v":3},"Player3"]
[{"$f":"IF(B5=\"\",\"\",MAX(A$1:A4)+1)","v":4},"Player4"]
[{"$f":"IF(B6=\"\",\"\",MAX(A$1:A5)+1)","v":5},"Player5"]
[{"$f":"IF(B7=\"\",\"\",MAX(A$1:A6)+1)","v":6},"Player6"]
[{"$f":"IF(B8=\"\",\"\",MAX(A$1:A7)+1)","v":7},"Player7"]
[{"$f":"IF(B9=\"\",\"\",MAX(A$1:A8)+1)","v":8},"Player8"]
[{"$f":"IF(B10=\"\",\"\",MAX(A$1:A9)+1)","v":9},"Player9"]
[{"$f":"IF(B11=\"\",\"\",MAX(A$1:A10)+1)","v":10},"Player10"]
[{"$f":"IF(B12=\"\",\"\",MAX(A$1:A11)+1)","v":11},"Player11"]
[{"$f":"IF(B13=\"\",\"\",MAX(A$1:A12)+1)","v":12},"Player12"]
[{"$f":"IF(B14=\"\",\"\",MAX(A$1:A13)+1)","v":13},"Player13"]
[{"$f":"IF(B15=\"\",\"\",MAX(A$1:A14)+1)","v":14},"Player14"]
[{"$f":"IF(B16=\"\",\"\",MAX(A$1:A15)+1)","v":15},"Player15"]
[{"$f":"IF(B17=\"\",\"\",MAX(A$1:A16)+1)","v":16},"Player16"]
[{"$f":"IF(B18=\"\",\"\",MAX(A$1:A17)+1)","v":17},"Player17"]
[{"$f":"IF(B19=\"\",\"\",MAX(A$1:A18)+1)","v":18},"Player18"]
[{"$f":"IF(B20=\"\",\"\",MAX(A$1:A19)+1)","v":19},"Player19"]
[{"$f":"IF(B21=\"\",\"\",MAX(A$1:A20)+1)","v":20},"Player20"]
[{"$f":"IF(B22=\"\",\"\",MAX(A$1:A21)+1)","v":21},"Player21"]
[{"$f":"IF(B23=\"\",\"\",MAX(A$1:A22)+1)","v":22},"Player22"]
[{"$f":"IF(B24=\"\",\"\",MAX(A$1:A23)+1)","v":23},"Player23"]
[{"$f":"IF(B25=\"\",\"\",MAX(A$1:A24)+1)","v":24},"Player24"]
[{"$f":"IF(B26=\"\",\"\",MAX(A$1:A25)+1)","v":25},"Player25"]
[{"$f":"IF(B27=\"\",\"\",MAX(A$1:A26)+1)","v":26},"Player26"]
[{"$f":"IF(B28=\"\",\"\",MAX(A$1:A27)+1)","v":27},"Player27"]
[{"$f":"IF(B29=\"\",\"\",MAX(A$1:A28)+1)","v":28},"Player28"]
[{"$f":"IF(B30=\"\",\"\",MAX(A$1:A29)+1)","v":29},"Player29"]
[{"$f":"IF(B31=\"\",\"\",MAX(A$1:A30)+1)","v":30},"Player30"]
[{"$f":"IF(B32=\"\",\"\",MAX(A$1:A31)+1)","v":31},"Player31"]
[{"$f":"IF(B33=\"\",\"\",MAX(A$1:A32)+1)","v":32},"Player32"]
[{"$f":"IF(B34=\"\",\"\",MAX(A$1:A33)+1)","v":33},"Player33"]
[{"$f":"IF(B35=\"\",\"\",MAX(A$1:A34)+1)","v":34},"Player34"]
[{"$f":"IF(B36=\"\",\"\",MAX(A$1:A35)+1)","v":35},"Player35"]
[{"$f":"IF(B37=\"\",\"\",MAX(A$1:A36)+1)","v":36},"Player36"]
[{"$f":"IF(B38=\"\",\"\",MAX(A$1:A37)+1)","v":37},"Player37"]
[{"$f":"IF(B39=\"\",\"\",MAX(A$1:A38)+1)","v":38},"Player38"]
[{"$f":"IF(B40=\"\",\"\",MAX(A$1:A39)+1)","v":39},"Player39"]
[{"$f":"IF(B41=\"\",\"\",MAX(A$1:A40)+1)","v":40},"Player40"]
[{"$f":"IF(B42=\"\",\"\",MAX(A$1:A41)+1)","v":""}]
[{"$f":"IF(B43=\"\",\"\",MAX(A$1:A42)+1)","v":""}]
[{"$f":"IF(B44=\"\",\"\",MAX(A$1:A43)+1)","v":""}]
[{"$f":"IF(B45=\"\",\"\",MAX(A$1:A44)+1)","v":""}]
[{"$f":"IF(B46=\"\",\"\",MAX(A$1:A45)+1)","v":""}]
[{"$f":"IF(B47=\"\",\"\",MAX(A$1:A46)+1)","v":""}]
[{"$f":"IF(B48=\"\",\"\",MAX(A$1:A47)+1)","v":""}]
[{"$f":"IF(B49=\"\",\"\",MAX(A$1:A48)+1)","v":""}]
[{"$f":"IF(B50=\"\",\"\",MAX(A$1:A49)+1)","v":""}]
[{"$f":"IF(B51=\"\",\"\",MAX(A$1:A50)+1)","v":""}]

{"sheet":"Matrix","index":4,"n_rows":41,"n_cols":41,"rows_kept":41,"cut":false,"hidden":false,"merged":[]}
[null,"Player1","Player2","Player3","Player4","Player5","Player6","Player7","Player8","Player9","Player10","Player11","Player12","Player13","Player14","Player15","Player16","Player17","Player18","Player19","Player20","Player21","Player22","Player23","Player24","Player25","Player26","Player27","Player28","Player29","Player30","Player31","Player32","Player33","Player34","Player35","Player36","Player37","Player38","Player39","Player40"]
["Player1",null,null,null,null,null,null,null,null,null,"R4, 9 - 18",null,null,null,null,null,"R6, 9 - 17",null,null,null,null,null,null,null,null,null,null,null,null,"R1, 12 - 12",null,null,null,null,"R3, 13 - 12","R2, 10 - 16",null,"R5, 10 - 12"]
["Player2",null,null,null,null,null,null,null,null,null,null,null,null,"R5, 9 - 19",null,null,null,"R2, 12 - 13",null,null,"R4, 13 - 11",null,"R6, 6 - 18",null,null,null,"R1, 16 - 7",null,null,null,null,null,null,null,null,"R3, 19 - 8"]
["Player3",null,null,null,null,"R6, 12 - 13",null,null,null,null,null,null,null,null,null,null,null,null,null,"R4, 16 - 9","R1, 7 - 19",null,"R3, 16 - 8",null,null,null,null,null,null,null,null,null,null,null,null,null,"R5, 9 - 19",null,null,null,"R2, 19 - 9"]
["Player4",null,null,null,null,null,"R3, 8 - 19","R5, 8 - 19",null,null,null,null,null,null,null,"R6, 9 - 18",null,null,null,null,null,null,null,null,"R2, 9 - 16",null,null,null,null,null,null,null,"R4, 9 - 14",null,null,null,null,"R1, 18 - 8"]
["Player5",null,null,"R6, 13 - 12",null,null,null,"R1, 17 - 9",null,null,null,"R5, 8 - 15",null,null,null,null,null,"R3, 16 - 11","R2, 16 - 11",null,null,null,null,null,"R4, 11 - 15"]
["Player6",null,null,null,"R3, 19 - 8",null,null,null,null,null,"R5, 8 - 16",null,null,null,null,"R1, 14 - 11",null,null,"R4, 8 - 19",null,null,"R6, 14 - 11","R2, 13 - 12"]
["Player7",null,null,null,"R5, 19 - 8","R1, 9 - 17",null,null,"R3, 15 - 10",null,null,null,"R6, 18 - 7",null,null,null,null,null,null,null,null,null,null,null,null,null,null,null,null,null,"R2, 10 - 15",null,null,"R4, 10 - 16"]
["Player8",null,null,null,null,null,null,"R3, 10 - 15",null,null,null,null,"R2, 11 - 15",null,null,null,null,null,null,null,null,null,null,null,null,null,null,null,"R1, 9 - 9",null,null,null,null,null,null,null,null,"R4, 10 - 16","R6, 15 - 10",null,"R5, 6 - 19"]
["Player9",null,null,null,null,null,null,null,null,null,"R1, 12 - 11",null,null,null,null,"R2, 7 - 15",null,"R6, 15 - 10",null,null,"R5, 9 - 19",null,null,null,null,null,null,"R4, 19 - 8",null,"R3, 19 - 9"]
["Player10","R4, 18 - 9",null,null,null,null,"R5, 16 - 8",null,null,"R1, 11 - 12",null,null,null,null,null,null,null,null,null,null,null,null,null,null,null,null,null,null,null,null,"R3, 11 - 11",null,null,null,"R2, 13 - 12",null,null,null,null,"R6, 11 - 13"]
["Player11",null,null,null,null,"R5, 15 - 8",null,null,null,null,null,null,null,null,null,null,null,null,"R1, 10 - 16",null,null,null,null,null,"R6, 16 - 9",null,null,null,null,null,null,null,"R3, 18 - 7",null,null,null,"R4, 16 - 9",null,null,"R2, 19 - 8"]
["Player12",null,null,null,null,null,null,"R6, 7 - 18","R2, 15 - 11",null,null,null,null,null,null,null,null,null,null,"R1, 8 - 18",null,null,null,null,null,null,null,"R5, 19 - 8","R3, 11 - 15",null,null,null,null,null,null,null,null,null,null,null,"R4, 12 - 11"]
["Player13",null,"R5, 19 - 9",null,null,null,null,null,null,null,null,null,null,null,null,"R3, 19 - 9","R1, 17 - 10",null,null,"R2, 8 - 15","R6, 13 - 13","R4, 15 - 9"]
["Player14",null,null,null,null,null,null,null,null,null,null,null,null,null,null,null,null,"R4, 10 - 16",null,null,null,null,null,null,null,"R6, 13 - 12",null,"R2, 11 - 12",null,null,"R1, 14 - 9",null,"R5, 12 - 12","R3, 15 - 10"]
["Player15",null,null,null,"R6, 18 - 9",null,"R1, 11 - 14",null,null,"R2, 15 - 7",null,null,null,"R3, 9 - 19",null,null,null,null,null,null,null,null,null,null,null,"R5, 9 - 19",null,null,null,null,null,null,null,null,null,"R4, 8 - 17"]
["Player16","R6, 17 - 9",null,null,null,null,null,null,null,null,null,null,null,"R1, 10 - 17",null,null,null,null,null,null,null,"R3, 10 - 16",null,null,null,null,null,null,"R4, 8 - 17",null,null,null,null,null,"R5, 10 - 10",null,null,null,"R2, 18 - 8"]
["Player17",null,"R2, 13 - 12",null,null,"R3, 11 - 16",null,null,null,"R6, 10 - 15",null,null,null,null,"R4, 16 - 10",null,null,null,null,null,null,null,null,null,null,null,null,null,"R5, 11 - 14",null,null,null,null,null,null,null,null,null,null,"R1, 16 - 10"]
["Player18",null,null,null,null,"R2, 11 - 16","R4, 19 - 8",null,null,null,null,"R1, 16 - 10",null,null,null,null,null,null,null,null,null,null,null,null,"R5, 8 - 19","R3, 19 - 8",null,null,null,null,null,null,null,null,null,null,"R6, 9 - 16"]
["Player19",null,null,"R4, 9 - 16",null,null,null,null,null,null,null,null,"R1, 18 - 8","R2, 15 - 8",null,null,null,null,null,null,null,null,null,null,"R3, 10 - 18",null,null,null,null,null,null,null,"R6, 19 - 9",null,null,null,null,null,null,"R5, 9 - 18"]
["Player20",null,"R4, 11 - 13","R1, 19 - 7",null,null,null,null,null,"R5, 19 - 9",null,null,null,"R6, 13 - 13",null,null,null,null,null,null,null,null,null,null,null,null,null,null,null,null,null,null,"R2, 17 - 9",null,null,null,"R3, 11 - 12"]
["Player21",null,null,null,null,null,"R6, 11 - 14",null,null,null,null,null,null,"R4, 9 - 15",null,null,"R3, 16 - 10",null,null,null,null,null,null,null,null,null,null,null,null,"R2, 16 - 7","R5, 9 - 19",null,null,null,"R1, 12 - 11"]
["Player22",null,"R6, 18 - 6","R3, 8 - 16",null,null,"R2, 12 - 13",null,null,null,null,null,null,null,null,null,null,null,null,null,null,null,null,null,null,"R4, 18 - 8",null,null,null,null,null,"R1, 15 - 7",null,null,null,"R5, 16 - 9"]
["Player23",null,null,null,null,null,null,null,null,null,null,null,null,null,null,null,null,null,null,null,null,null,null,null,null,null,null,"R6, 15 - 10",null,null,null,"R5, 10 - 19",null,"R2, 7 - 15",null,null,"R1, 9 - 18",null,"R4, 18 - 10",null,"R3, 9 - 15"]
["Player24",null,null,null,"R2, 16 - 9","R4, 15 - 11",null,null,null,null,null,"R6, 9 - 16",null,null,null,null,null,null,"R5, 19 - 8","R3, 18 - 10",null,null,null,null,null,null,null,null,null,null,null,null,null,"R1, 18 - 9"]
["Player25",null,null,null,null,null,null,null,null,null,null,null,null,null,"R6, 12 - 13","R5, 19 - 9",null,null,"R3, 8 - 19",null,null,null,"R4, 8 - 18",null,null,null,null,null,null,null,null,null,null,null,null,null,"R2, 9 - 18",null,"R1, 18 - 10"]
["Player26",null,"R1, 7 - 16",null,null,null,null,null,null,null,null,null,null,null,null,null,null,null,null,null,null,null,null,null,null,null,null,null,null,"R4, 19 - 7",null,"R2, 8 - 18",null,"R5, 14 - 9",null,null,null,"R3, 13 - 13",null,null,"R6, 7 - 19"]
["Player27",null,null,null,null,null,null,null,null,"R4, 8 - 19",null,null,"R5, 8 - 19",null,"R2, 12 - 11",null,null,null,null,null,null,null,null,"R6, 10 - 15",null,null,null,null,null,null,null,"R3, 12 - 10",null,null,null,"R1, 13 - 12"]
["Player28",null,null,null,null,null,null,null,"R1, 9 - 9",null,null,null,"R3, 15 - 11",null,null,null,"R4, 17 - 8","R5, 14 - 11",null,null,null,null,null,null,null,null,null,null,null,null,"R6, 18 - 8",null,null,null,null,null,null,"R2, 15 - 8"]
["Player29","R1, 12 - 12",null,null,null,null,null,null,null,"R3, 9 - 19",null,null,null,null,null,null,null,null,null,null,null,"R2, 7 - 16",null,null,null,null,"R4, 7 - 19",null,null,null,null,null,null,null,"R6, 13 - 7",null,null,null,"R5, 19 - 7"]
["Player30",null,null,null,null,null,null,"R2, 15 - 10",null,null,"R3, 11 - 11",null,null,null,"R1, 9 - 14",null,null,null,null,null,null,"R5, 19 - 9",null,null,null,null,null,null,"R6, 8 - 18",null,null,"R4, 18 - 8"]
["Player31",null,null,null,null,null,null,null,null,null,null,null,null,null,null,null,null,null,null,null,null,null,"R1, 7 - 15","R5, 19 - 10",null,null,"R2, 18 - 8","R3, 10 - 12",null,null,"R4, 8 - 18",null,null,null,null,"R6, 18 - 6"]
["Player32",null,null,null,"R4, 14 - 9",null,null,null,null,null,null,"R3, 7 - 18",null,null,"R5, 12 - 12",null,null,null,null,"R6, 9 - 19","R2, 9 - 17",null,null,null,null,null,null,null,null,null,null,null,null,null,null,null,null,null,null,null,"R1, 19 - 7"]
["Player33",null,null,null,null,null,null,"R4, 16 - 10",null,null,null,null,null,null,"R3, 10 - 15",null,null,null,null,null,null,null,null,"R2, 15 - 7","R1, 9 - 18",null,"R5, 9 - 14",null,null,null,null,null,null,null,null,null,null,"R6, 15 - 11"]
["Player34","R3, 12 - 13",null,null,null,null,null,null,null,null,"R2, 12 - 13",null,null,null,null,null,"R5, 10 - 10",null,null,null,null,"R1, 11 - 12",null,null,null,null,null,null,null,"R6, 7 - 13",null,null,null,null,null,null,null,null,null,"R4, 11 - 16"]
["Player35","R2, 16 - 10","R3, 8 - 19",null,null,null,null,null,null,null,null,null,null,null,null,"R4, 17 - 8",null,null,null,null,null,null,"R5, 9 - 16",null,null,null,null,"R1, 12 - 13",null,null,null,"R6, 6 - 18"]
["Player36",null,null,"R5, 19 - 9",null,null,null,null,null,null,null,"R4, 9 - 16",null,null,null,null,null,null,"R6, 16 - 9",null,"R3, 12 - 11",null,null,"R1, 18 - 9",null,"R2, 18 - 9"]
["Player37","R5, 12 - 10",null,null,"R1, 8 - 18",null,null,null,"R4, 16 - 10",null,null,null,null,null,null,null,null,null,null,null,null,null,null,null,null,null,"R3, 13 - 13",null,"R2, 8 - 15",null,null,null,null,"R6, 11 - 15"]
["Player38",null,null,null,null,null,null,null,"R6, 10 - 15",null,null,null,null,null,null,null,"R2, 8 - 18",null,null,null,null,null,null,"R4, 10 - 18",null,"R1, 10 - 18",null,null,null,"R5, 7 - 19",null,null,null,null,null,null,null,null,null,"R3, 8 - 17"]
["Player39",null,null,null,null,null,null,null,null,null,"R6, 13 - 11","R2, 8 - 19",null,null,null,null,null,"R1, 10 - 16",null,"R5, 18 - 9",null,null,null,null,null,null,null,null,null,null,null,null,null,null,"R4, 16 - 11",null,null,null,"R3, 17 - 8"]
["Player40",null,null,"R2, 9 - 19",null,null,null,null,"R5, 19 - 6",null,null,null,"R4, 11 - 12",null,null,null,null,null,null,null,null,null,null,"R3, 15 - 9",null,null,"R6, 19 - 7",null,null,null,null,null,"R1, 7 - 19"]

{"sheet":"Table","index":5,"n_rows":41,"n_cols":14,"rows_kept":41,"cut":false,"hidden":false,"merged":[]}
["Player","Points","TD For","TD Against","TD Net","Cas For","Cas Against","Cas Net","Bonus1","Bonus2","Wins","Draws","Losses","Opp Score"]
["Player24",95,25,16,9,18,19,3,23,22,5,null,1,472]
["Player11",94,23,15,8,17,15,4,22,19,5,null,1,502]
["Player36",92,25,18,7,18,17,5,21,22,5,null,1,487]
["Player13",91,26,17,9,21,26,-7,19,19,4,1,1,461]
["Player20",90,27,17,10,17,19,-4,24,15,3,1,2,488]
["Player28",88,22,14,8,15,17,0,16,17,5,1,null,431]
["Player22",87,19,14,5,13,14,10,23,24,4,null,2,452]
["Player18",82,21,19,2,20,23,-2,18,21,3,null,3,512]
["Player39",82,23,19,4,21,19,-1,15,18,4,null,2,447]
["Player5",81,19,17,2,20,22,0,15,22,4,null,2,508]
["Player9",81,19,16,3,24,21,-2,19,19,4,null,2,447]
["Player7",81,21,17,4,17,20,-6,19,14,3,null,3,429]
["Player19",80,22,19,3,28,18,1,14,19,3,null,3,489]
["Player30",80,20,16,4,17,22,-2,22,20,3,1,2,477]
["Player10",80,23,19,4,13,19,1,20,20,3,1,2,445]
["Player31",80,19,14,5,20,18,-2,12,16,3,null,3,434]
["Player40",80,17,18,-1,21,18,-4,21,14,3,null,3,418]
["Player3",79,20,20,0,19,21,-1,14,20,3,null,3,510]
["Player17",77,20,21,-1,23,16,5,21,21,3,null,3,482]
["Player6",76,22,19,3,14,20,2,20,22,4,null,2,453]
["Player2",75,20,18,2,16,21,3,20,24,3,null,3,481]
["Player14",75,15,14,1,21,18,4,17,22,3,1,2,438]
["Player25",74,20,26,-6,17,25,-1,24,24,2,null,4,459]
["Player33",74,16,17,-1,23,17,7,24,24,3,null,3,455]
["Player21",73,25,25,0,19,13,-1,17,12,3,null,3,450]
["Player16",73,17,18,-1,15,17,6,20,23,2,1,3,431]
["Player12",72,22,27,-5,17,18,8,15,26,3,null,3,453]
["Player32",70,18,23,-5,17,15,5,19,20,2,1,3,480]
["Player15",70,17,23,-6,22,17,10,26,27,2,null,4,451]
["Player26",68,13,22,-9,18,26,-6,21,20,2,1,3,444]
["Player23",68,19,22,-3,20,18,-2,24,16,2,null,4,442]
["Player35",68,16,19,-3,22,24,-8,19,16,2,null,4,438]
["Player37",68,14,19,-5,25,16,9,18,25,2,1,3,415]
["Player29",67,15,20,-5,17,19,8,26,27,2,1,3,401]
["Player27",63,17,24,-7,17,21,4,22,25,3,null,3,444]
["Player34",63,21,23,-2,15,18,2,19,20,null,1,5,438]
["Player1",63,18,24,-6,22,17,2,22,19,1,1,4,419]
["Player4",61,16,25,-9,18,19,0,21,19,1,null,5,460]
["Player8",61,16,20,-4,19,21,3,21,24,1,1,4,442]
["Player38",53,16,30,-14,24,16,-4,20,12,null,null,6,425]

{"sheet":"Round1","index":6,"n_rows":41,"n_cols":21,"rows_kept":41,"cut":false,"hidden":false,"merged":[]}
[null,"Home Player","Away Player","Home Points","Away Points","Home TD","Away TD","Home Cas","Away Cas","Home Bonus1","Away Bonus1","Home Bonus2","Away Bonus2",null,null,null,null,null,null,"Points After Games"]
[null,"Player1","Player29",{"$f":"fctScore(F2,G2,H2,J2,L2)","v":9},{"$f":"fctScore(G2,F2,I2,K2,M2)","v":8},4,4,4,2,2,5,1,5,null,null,null,null,null,null,"Player20",19]
[null,"Player6","Player15",{"$f":"fctScore(F3,G3,H3,J3,L3)","v":10},{"$f":"fctScore(G3,F3,I3,K3,M3)","v":7},5,4,1,3,5,5,3,6,null,null,null,null,null,null,"Player32",19]
[null,"Player19","Player12",15,4,5,1,6,3,3,5,1,4,null,null,null,null,null,null,"Player25",18]
[null,"Player17","Player39",12,6,3,2,4,4,2,2,5,5,null,null,null,null,null,null,"Player24",18]
[null,"Player38","Player25",6,14,4,6,5,2,4,6,2,4,null,null,null,null,null,null,"Player36",18]
[null,"Player26","Player2",4,13,1,6,4,1,4,1,1,5,null,null,null,null,null,null,"Player4",18]
[null,"Player14","Player30",10,5,2,1,2,3,2,6,6,3,null,null,null,null,null,null,"Player19",18]
[null,"Player10","Player9",7,8,2,2,2,4,3,3,4,2,null,null,null,null,null,null,"Player13",17]
[null,"Player5","Player7",14,5,4,2,2,4,1,3,5,2,null,null,null,null,null,null,"Player5",17]
[null,"Player36","Player23",14,6,5,3,2,5,4,4,3,1,null,null,null,null,null,null,"Player17",16]
[null,"Player35","Player27",9,9,4,4,5,5,1,4,5,3,null,null,null,null,null,null,"Player18",16]
[null,"Player18","Player11",12,7,4,3,3,3,3,3,2,1,null,null,null,null,null,null,"Player2",16]
[null,"Player3","Player20",3,15,2,6,1,3,3,3,2,3,null,null,null,null,null,null,"Player22",15]
[null,"Player33","Player24",5,14,2,4,4,2,6,4,3,3,null,null,null,null,null,null,"Player6",14]
[null,"Player40","Player32",4,15,1,5,3,5,4,5,1,2,null,null,null,null,null,null,"Player14",14]
[null,"Player28","Player8",6,5,1,1,2,1,1,4,4,4,null,null,null,null,null,null,"Player27",13]
[null,"Player4","Player37",14,4,5,1,2,4,3,3,2,4,null,null,null,null,null,null,"Player35",12]
[null,"Player13","Player16",13,6,5,3,1,5,3,3,3,2,null,null,null,null,null,null,"Player1",12]
[null,"Player22","Player31",11,4,2,1,4,2,5,1,3,2,null,null,null,null,null,null,"Player29",12]
[null,"Player34","Player21",8,9,5,5,2,4,2,1,1,2,null,null,null,null,null,null,"Player9",12]
[null,null,null,null,null,null,null,null,null,null,null,null,null,null,null,null,null,null,null,"Player21",12]
[null,null,null,null,null,null,null,null,null,null,null,null,null,null,null,null,null,null,null,"Player15",11]
[null,null,null,null,null,null,null,null,null,null,null,null,null,null,null,null,null,null,null,"Player10",11]
[null,null,null,null,null,null,null,null,null,null,null,null,null,null,null,null,null,null,null,"Player34",11]
[null,null,null,null,null,null,null,null,null,null,null,null,null,null,null,null,null,null,null,"Player38",10]
[null,null,null,null,null,null,null,null,null,null,null,null,null,null,null,null,null,null,null,"Player16",10]
[null,null,null,null,null,null,null,null,null,null,null,null,null,null,null,null,null,null,null,"Player11",10]
[null,null,null,null,null,null,null,null,null,null,null,null,null,null,null,null,null,null,null,"Player39",10]
[null,null,null,null,null,null,null,null,null,null,null,null,null,null,null,null,null,null,null,"Player23",9]
[null,null,null,null,null,null,null,null,null,null,null,null,null,null,null,null,null,null,null,"Player33",9]
[null,null,null,null,null,null,null,null,null,null,null,null,null,null,null,null,null,null,null,"Player7",9]
[null,null,null,null,null,null,null,null,null,null,null,null,null,null,null,null,null,null,null,"Player30",9]
[null,null,null,null,null,null,null,null,null,null,null,null,null,null,null,null,null,null,null,"Player8",9]
[null,null,null,null,null,null,null,null,null,null,null,null,null,null,null,null,null,null,null,"Player28",9]
[null,null,null,null,null,null,null,null,null,null,null,null,null,null,null,null,null,null,null,"Player12",8]
[null,null,null,null,null,null,null,null,null,null,null,null,null,null,null,null,null,null,null,"Player37",8]
[null,null,null,null,null,null,null,null,null,null,null,null,null,null,null,null,null,null,null,"Player3",7]
[null,null,null,null,null,null,null,null,null,null,null,null,null,null,null,null,null,null,null,"Player40",7]
[null,null,null,null,null,null,null,null,null,null,null,null,null,null,null,null,null,null,null,"Player26",7]
[null,null,null,null,null,null,null,null,null,null,null,null,null,null,null,null,null,null,null,"Player31",7]

{"sheet":"Round2","index":7,"n_rows":41,"n_cols":21,"rows_kept":41,"cut":false,"hidden":false,"merged":[]}
["Swaps: 1","Home Player","Away Player","Home Points","Away Points","Home TD","Away TD","Home Cas","Away Cas","Home Bonus1","Away Bonus1","Home Bonus2","Away Bonus2",null,null,null,"Points Before Games",null,null,"Points After Games"]
[null,"Player20","Player32",{"$f":"fctScore(F2,G2,H2,J2,L2)","v":14},{"$f":"fctScore(G2,F2,I2,K2,M2)","v":5},5,2,2,3,2,3,1,3,null,null,null,"Player20",19,null,"Player20",36]
[null,"Player25","Player36",{"$f":"fctScore(F3,G3,H3,J3,L3)","v":5},{"$f":"fctScore(G3,F3,I3,K3,M3)","v":15},2,5,4,5,5,2,4,1,null,null,null,"Player32",19,null,"Player36",36]
[null,"Player24","Player4",12,5,4,3,6,1,5,4,3,2,null,null,null,"Player25",18,null,"Player24",34]
[null,"Player19","Player13",12,4,3,2,6,1,1,3,4,5,null,null,null,"Player24",18,null,"Player19",33]
[null,"Player5","Player18",12,7,4,3,5,5,4,4,6,3,null,null,null,"Player36",18,null,"Player5",33]
[null,"Player17","Player2",9,8,3,3,4,2,3,4,5,4,null,null,null,"Player4",18,null,"Player17",29]
[null,"Player22","Player6",8,9,3,3,2,4,3,4,5,3,null,null,null,"Player19",18,null,"Player11",29]
[null,"Player14","Player27",7,8,2,2,2,3,2,4,3,5,null,null,null,"Player13",17,null,"Player32",28]
[null,"Player35","Player1",12,6,3,2,4,5,4,5,2,5,null,null,null,"Player5",17,null,"Player35",28]
[null,"Player29","Player21",3,13,2,6,1,1,5,3,3,1,null,null,null,"Player17",16,null,"Player2",28]
[null,"Player9","Player15",3,11,1,2,1,4,3,4,2,3,null,null,null,"Player18",16,null,"Player16",28]
[null,"Player10","Player34",9,9,5,5,3,5,5,1,4,4,null,null,null,"Player2",16,null,"Player21",28]
[null,"Player38","Player16",4,14,1,3,3,2,6,5,4,3,null,null,null,"Player22",15,null,"Player18",27]
[null,"Player11","Player39",15,5,5,2,3,3,6,1,4,3,null,null,null,"Player6",14,null,"Player25",27]
[null,"Player23","Player33",3,11,1,2,1,3,6,4,3,6,null,null,null,"Player14",14,null,"Player6",27]
[null,"Player7","Player30",6,11,2,3,3,2,3,2,3,6,null,null,null,"Player27",13,null,"Player22",27]
[null,"Player8","Player12",7,12,4,5,4,3,4,1,5,4,null,null,null,"Player35",12,null,"Player4",27]
[null,"Player28","Player37",11,5,3,2,2,2,5,1,3,5,null,null,null,"Player1",12,null,"Player3",26]
[null,"Player3","Player40",15,5,5,2,6,5,4,5,5,3,null,null,null,"Player29",12,null,"Player15",26]
[null,"Player26","Player31",4,15,1,6,5,4,3,1,2,2,null,null,null,"Player9",12,null,"Player13",25]
[null,null,null,null,null,null,null,null,null,null,null,null,null,null,null,null,"Player21",12,null,"Player27",25]
[null,null,null,null,null,null,null,null,null,null,null,null,null,null,null,null,"Player15",11,null,"Player14",25]
[null,null,null,null,null,null,null,null,null,null,null,null,null,null,null,null,"Player10",11,null,"Player31",25]
[null,null,null,null,null,null,null,null,null,null,null,null,null,null,null,null,"Player34",11,null,"Player33",24]
[null,null,null,null,null,null,null,null,null,null,null,null,null,null,null,null,"Player38",10,null,"Player30",24]
[null,null,null,null,null,null,null,null,null,null,null,null,null,null,null,null,"Player16",10,null,"Player10",24]
[null,null,null,null,null,null,null,null,null,null,null,null,null,null,null,null,"Player11",10,null,"Player28",24]
[null,null,null,null,null,null,null,null,null,null,null,null,null,null,null,null,"Player39",10,null,"Player12",23]
[null,null,null,null,null,null,null,null,null,null,null,null,null,null,null,null,"Player23",9,null,"Player34",23]
[null,null,null,null,null,null,null,null,null,null,null,null,null,null,null,null,"Player33",9,null,"Player1",22]
[null,null,null,null,null,null,null,null,null,null,null,null,null,null,null,null,"Player7",9,null,"Player8",20]
[null,null,null,null,null,null,null,null,null,null,null,null,null,null,null,null,"Player30",9,null,"Player7",19]
[null,null,null,null,null,null,null,null,null,null,null,null,null,null,null,null,"Player8",9,null,"Player9",19]
[null,null,null,null,null,null,null,null,null,null,null,null,null,null,null,null,"Player28",9,null,"Player29",19]
[null,null,null,null,null,null,null,null,null,null,null,null,null,null,null,null,"Player12",8,null,"Player39",18]
[null,null,null,null,null,null,null,null,null,null,null,null,null,null,null,null,"Player37",8,null,"Player38",18]
[null,null,null,null,null,null,null,null,null,null,null,null,null,null,null,null,"Player3",7,null,"Player23",16]
[null,null,null,null,null,null,null,null,null,null,null,null,null,null,null,null,"Player40",7,null,"Player40",16]
[null,null,null,null,null,null,null,null,null,null,null,null,null,null,null,null,"Player26",7,null,"Player37",16]
[null,null,null,null,null,null,null,null,null,null,null,null,null,null,null,null,"Player31",7,null,"Player26",15]

{"sheet":"Round3","index":8,"n_rows":41,"n_cols":21,"rows_kept":41,"cut":false,"hidden":false,"merged":[]}
["Swaps: 2","Home Player","Away Player","Home Points","Away Points","Home TD","Away TD","Home Cas","Away Cas","Home Bonus1","Away Bonus1","Home Bonus2","Away Bonus2",null,null,null,"Points Before Games",null,null,"Points After Games"]
[null,"Player20","Player36",{"$f":"fctScore(F2,G2,H2,J2,L2)","v":7},{"$f":"fctScore(G2,F2,I2,K2,M2)","v":8},3,3,1,2,4,5,3,2,null,null,null,"Player20",36,null,"Player24",52]
[null,"Player24","Player19",{"$f":"fctScore(F3,G3,H3,J3,L3)","v":14},{"$f":"fctScore(G3,F3,I3,K3,M3)","v":6},5,3,2,5,2,3,2,5,null,null,null,"Player36",36,null,"Player5",49]
[null,"Player5","Player17",12,7,4,3,3,5,4,5,3,2,null,null,null,"Player24",34,null,"Player36",48]
[null,"Player11","Player32",14,4,5,2,2,2,3,1,5,5,null,null,null,"Player19",33,null,"Player20",47]
[null,"Player35","Player2",5,15,2,4,3,5,5,3,1,3,null,null,null,"Player5",33,null,"Player11",47]
[null,"Player16","Player21",6,12,3,4,2,5,2,4,6,2,null,null,null,"Player17",29,null,"Player2",47]
[null,"Player18","Player25",15,4,6,1,6,4,4,5,4,2,null,null,null,"Player11",29,null,"Player18",46]
[null,"Player6","Player4",15,4,5,1,3,5,2,3,3,3,null,null,null,"Player32",28,null,"Player6",46]
[null,"Player22","Player3",4,13,2,4,2,1,5,1,4,5,null,null,null,"Player35",28,null,"Player13",44]
[null,"Player15","Player13",5,15,2,6,5,3,3,5,5,3,null,null,null,"Player2",28,null,"Player21",44]
[null,"Player27","Player31",8,7,2,2,3,2,4,1,2,4,null,null,null,"Player16",28,null,"Player19",43]
[null,"Player14","Player33",12,6,3,2,6,3,1,3,2,5,null,null,null,"Player21",28,null,"Player3",42]
[null,"Player30","Player10",8,7,5,5,2,1,1,2,3,2,null,null,null,"Player18",27,null,"Player17",40]
[null,"Player28","Player12",12,7,6,5,4,4,2,2,1,5,null,null,null,"Player25",27,null,"Player14",40]
[null,"Player34","Player1",8,9,5,5,2,3,4,5,4,2,null,null,null,"Player6",27,null,"Player28",39]
[null,"Player8","Player7",6,12,2,3,4,3,3,3,4,1,null,null,null,"Player22",27,null,"Player16",38]
[null,"Player9","Player29",15,5,4,2,6,5,6,5,3,5,null,null,null,"Player4",27,null,"Player9",38]
[null,"Player39","Player38",14,5,6,2,2,4,1,3,4,1,null,null,null,"Player3",26,null,"Player27",37]
[null,"Player23","Player40",5,11,1,2,3,4,2,2,5,2,null,null,null,"Player15",26,null,"Player35",36]
[null,"Player37","Player26",9,9,3,3,5,3,4,4,3,6,null,null,null,"Player13",25,null,"Player15",35]
[null,null,null,null,null,null,null,null,null,null,null,null,null,null,null,null,"Player27",25,null,"Player4",35]
[null,null,null,null,null,null,null,null,null,null,null,null,null,null,null,null,"Player14",25,null,"Player32",35]
[null,null,null,null,null,null,null,null,null,null,null,null,null,null,null,null,"Player31",25,null,"Player22",35]
[null,null,null,null,null,null,null,null,null,null,null,null,null,null,null,null,"Player33",24,null,"Player25",35]
[null,null,null,null,null,null,null,null,null,null,null,null,null,null,null,null,"Player30",24,null,"Player34",35]
[null,null,null,null,null,null,null,null,null,null,null,null,null,null,null,null,"Player10",24,null,"Player39",35]
[null,null,null,null,null,null,null,null,null,null,null,null,null,null,null,null,"Player28",24,null,"Player30",35]
[null,null,null,null,null,null,null,null,null,null,null,null,null,null,null,null,"Player12",23,null,"Player10",35]
[null,null,null,null,null,null,null,null,null,null,null,null,null,null,null,null,"Player34",23,null,"Player31",35]
[null,null,null,null,null,null,null,null,null,null,null,null,null,null,null,null,"Player1",22,null,"Player1",35]
[null,null,null,null,null,null,null,null,null,null,null,null,null,null,null,null,"Player8",20,null,"Player33",34]
[null,null,null,null,null,null,null,null,null,null,null,null,null,null,null,null,"Player7",19,null,"Player7",34]
[null,null,null,null,null,null,null,null,null,null,null,null,null,null,null,null,"Player9",19,null,"Player12",34]
[null,null,null,null,null,null,null,null,null,null,null,null,null,null,null,null,"Player29",19,null,"Player40",31]
[null,null,null,null,null,null,null,null,null,null,null,null,null,null,null,null,"Player39",18,null,"Player8",30]
[null,null,null,null,null,null,null,null,null,null,null,null,null,null,null,null,"Player38",18,null,"Player37",29]
[null,null,null,null,null,null,null,null,null,null,null,null,null,null,null,null,"Player23",16,null,"Player29",28]
[null,null,null,null,null,null,null,null,null,null,null,null,null,null,null,null,"Player40",16,null,"Player26",28]
[null,null,null,null,null,null,null,null,null,null,null,null,null,null,null,null,"Player37",16,null,"Player38",26]
[null,null,null,null,null,null,null,null,null,null,null,null,null,null,null,null,"Player26",15,null,"Player23",25]

{"sheet":"Round4","index":9,"n_rows":41,"n_cols":21,"rows_kept":41,"cut":false,"hidden":false,"merged":[]}
["Swaps: 2","Home Player","Away Player","Home Points","Away Points","Home TD","Away TD","Home Cas","Away Cas","Home Bonus1","Away Bonus1","Home Bonus2","Away Bonus2",null,null,null,"Points Before Games",null,null,"Points After Games"]
[null,"Player24","Player5",{"$f":"fctScore(F2,G2,H2,J2,L2)","v":11},{"$f":"fctScore(G2,F2,I2,K2,M2)","v":7},4,3,2,4,5,3,5,2,null,null,null,"Player24",52,null,"Player24",67]
[null,"Player36","Player11",{"$f":"fctScore(F3,G3,H3,J3,L3)","v":6},{"$f":"fctScore(G3,F3,I3,K3,M3)","v":12},4,5,2,3,1,2,6,5,null,null,null,"Player5",49,null,"Player18",65]
[null,"Player20","Player2",8,9,4,4,2,3,5,5,1,4,null,null,null,"Player36",48,null,"Player11",63]
[null,"Player18","Player6",15,4,3,1,3,4,3,3,6,6,null,null,null,"Player20",47,null,"Player5",60]
[null,"Player13","Player21",12,5,4,3,4,1,2,2,1,2,null,null,null,"Player11",47,null,"Player2",60]
[null,"Player19","Player3",7,12,3,4,4,5,1,3,1,2,null,null,null,"Player2",47,null,"Player13",59]
[null,"Player17","Player14",12,6,4,3,4,2,5,5,4,3,null,null,null,"Player18",46,null,"Player20",58]
[null,"Player28","Player16",13,4,4,2,1,2,5,6,3,4,null,null,null,"Player6",46,null,"Player3",58]
[null,"Player9","Player27",15,4,5,1,5,3,2,4,5,6,null,null,null,"Player13",44,null,"Player36",57]
[null,"Player35","Player15",15,4,4,1,4,6,1,6,1,2,null,null,null,"Player21",44,null,"Player9",57]
[null,"Player4","Player32",5,10,4,5,1,1,4,2,3,3,null,null,null,"Player19",43,null,"Player17",56]
[null,"Player22","Player25",14,4,5,3,2,1,3,4,5,4,null,null,null,"Player3",42,null,"Player28",56]
[null,"Player34","Player39",7,12,4,5,3,5,4,4,4,2,null,null,null,"Player17",40,null,"Player6",54]
[null,"Player30","Player31",14,4,5,1,2,6,5,2,2,2,null,null,null,"Player14",40,null,"Player10",53]
[null,"Player10","Player1",14,5,5,2,2,4,4,5,5,2,null,null,null,"Player28",39,null,"Player22",53]
[null,"Player33","Player7",12,6,5,4,5,2,3,4,3,2,null,null,null,"Player16",38,null,"Player35",53]
[null,"Player12","Player40",8,7,4,4,2,1,4,5,4,3,null,null,null,"Player9",38,null,"Player30",53]
[null,"Player8","Player37",6,12,2,3,6,5,3,3,4,4,null,null,null,"Player27",37,null,"Player21",53]
[null,"Player29","Player26",4,15,1,4,5,3,1,3,5,3,null,null,null,"Player35",36,null,"Player19",52]
[null,"Player38","Player23",6,15,3,5,3,4,3,2,2,1,null,null,null,"Player15",35,null,"Player39",51]
[null,null,null,null,null,null,null,null,null,null,null,null,null,null,null,null,"Player4",35,null,"Player14",50]
[null,null,null,null,null,null,null,null,null,null,null,null,null,null,null,null,"Player32",35,null,"Player33",50]
[null,null,null,null,null,null,null,null,null,null,null,null,null,null,null,null,"Player22",35,null,"Player32",49]
[null,null,null,null,null,null,null,null,null,null,null,null,null,null,null,null,"Player25",35,null,"Player26",47]
[null,null,null,null,null,null,null,null,null,null,null,null,null,null,null,null,"Player34",35,null,"Player16",46]
[null,null,null,null,null,null,null,null,null,null,null,null,null,null,null,null,"Player39",35,null,"Player34",46]
[null,null,null,null,null,null,null,null,null,null,null,null,null,null,null,null,"Player30",35,null,"Player12",46]
[null,null,null,null,null,null,null,null,null,null,null,null,null,null,null,null,"Player10",35,null,"Player27",45]
[null,null,null,null,null,null,null,null,null,null,null,null,null,null,null,null,"Player31",35,null,"Player37",45]
[null,null,null,null,null,null,null,null,null,null,null,null,null,null,null,null,"Player1",35,null,"Player4",44]
[null,null,null,null,null,null,null,null,null,null,null,null,null,null,null,null,"Player33",34,null,"Player7",44]
[null,null,null,null,null,null,null,null,null,null,null,null,null,null,null,null,"Player7",34,null,"Player1",44]
[null,null,null,null,null,null,null,null,null,null,null,null,null,null,null,null,"Player12",34,null,"Player15",43]
[null,null,null,null,null,null,null,null,null,null,null,null,null,null,null,null,"Player40",31,null,"Player25",43]
[null,null,null,null,null,null,null,null,null,null,null,null,null,null,null,null,"Player8",30,null,"Player31",43]
[null,null,null,null,null,null,null,null,null,null,null,null,null,null,null,null,"Player37",29,null,"Player23",43]
[null,null,null,null,null,null,null,null,null,null,null,null,null,null,null,null,"Player29",28,null,"Player40",42]
[null,null,null,null,null,null,null,null,null,null,null,null,null,null,null,null,"Player26",28,null,"Player8",40]
[null,null,null,null,null,null,null,null,null,null,null,null,null,null,null,null,"Player38",26,null,"Player38",36]
[null,null,null,null,null,null,null,null,null,null,null,null,null,null,null,null,"Player23",25,null,"Player29",35]

{"sheet":"Round5","index":10,"n_rows":41,"n_cols":21,"rows_kept":41,"cut":false,"hidden":false,"merged":[]}
["Swaps: 4","Home Player","Away Player","Home Points","Away Points","Home TD","Away TD","Home Cas","Away Cas","Home Bonus1","Away Bonus1","Home Bonus2","Away Bonus2",null,null,null,"Points Before Games",null,null,"Points After Games"]
[null,"Player24","Player18",{"$f":"fctScore(F2,G2,H2,J2,L2)","v":15},{"$f":"fctScore(G2,F2,I2,K2,M2)","v":4},6,2,4,2,5,2,5,2,null,null,null,"Player24",67,null,"Player24",86]
[null,"Player11","Player5",{"$f":"fctScore(F3,G3,H3,J3,L3)","v":11},{"$f":"fctScore(G3,F3,I3,K3,M3)","v":5},2,1,3,3,4,1,2,2,null,null,null,"Player18",65,null,"Player11",78]
[null,"Player2","Player13",5,15,2,5,4,6,5,4,4,2,null,null,null,"Player11",63,null,"Player13",78]
[null,"Player20","Player9",15,5,5,2,4,4,5,4,4,5,null,null,null,"Player5",60,null,"Player20",77]
[null,"Player3","Player36",5,15,2,4,3,4,2,3,3,6,null,null,null,"Player2",60,null,"Player36",76]
[null,"Player17","Player28",7,10,3,4,3,1,3,2,4,2,null,null,null,"Player13",59,null,"Player18",73]
[null,"Player6","Player10",4,12,2,3,1,4,4,3,3,3,null,null,null,"Player20",58,null,"Player30",72]
[null,"Player22","Player35",13,5,4,2,1,5,1,3,5,5,null,null,null,"Player3",58,null,"Player28",70]
[null,"Player30","Player21",15,5,5,2,3,5,5,3,3,3,null,null,null,"Player36",57,null,"Player2",69]
[null,"Player19","Player39",5,15,2,5,4,4,4,1,4,2,null,null,null,"Player9",57,null,"Player22",69]
[null,"Player33","Player26",5,10,1,2,6,2,4,3,3,2,null,null,null,"Player17",56,null,"Player10",69]
[null,"Player32","Player14",8,8,2,2,3,4,2,4,4,4,null,null,null,"Player28",56,null,"Player39",69]
[null,"Player16","Player34",6,6,1,1,2,2,3,4,2,5,null,null,null,"Player6",54,null,"Player5",68]
[null,"Player12","Player27",15,4,5,3,3,1,2,2,4,6,null,null,null,"Player10",53,null,"Player3",67]
[null,"Player37","Player1",8,6,2,2,5,1,4,4,4,4,null,null,null,"Player22",53,null,"Player17",67]
[null,"Player7","Player4",15,4,5,1,3,5,2,4,3,5,null,null,null,"Player35",53,null,"Player9",66]
[null,"Player15","Player25",5,15,3,5,2,4,5,2,6,6,null,null,null,"Player30",53,null,"Player12",65]
[null,"Player31","Player23",15,6,5,3,4,3,2,4,4,5,null,null,null,"Player21",53,null,"Player7",63]
[null,"Player40","Player8",15,2,3,1,3,1,3,3,2,6,null,null,null,"Player19",52,null,"Player21",62]
[null,"Player38","Player29",4,15,1,4,4,3,1,4,2,6,null,null,null,"Player39",51,null,"Player6",62]
[null,null,null,null,null,null,null,null,null,null,null,null,null,null,null,null,"Player14",50,null,"Player25",62]
[null,null,null,null,null,null,null,null,null,null,null,null,null,null,null,null,"Player33",50,null,"Player14",62]
[null,null,null,null,null,null,null,null,null,null,null,null,null,null,null,null,"Player32",49,null,"Player31",62]
[null,null,null,null,null,null,null,null,null,null,null,null,null,null,null,null,"Player26",47,null,"Player35",62]
[null,null,null,null,null,null,null,null,null,null,null,null,null,null,null,null,"Player16",46,null,"Player19",61]
[null,null,null,null,null,null,null,null,null,null,null,null,null,null,null,null,"Player34",46,null,"Player32",61]
[null,null,null,null,null,null,null,null,null,null,null,null,null,null,null,null,"Player12",46,null,"Player26",61]
[null,null,null,null,null,null,null,null,null,null,null,null,null,null,null,null,"Player27",45,null,"Player40",61]
[null,null,null,null,null,null,null,null,null,null,null,null,null,null,null,null,"Player37",45,null,"Player33",59]
[null,null,null,null,null,null,null,null,null,null,null,null,null,null,null,null,"Player4",44,null,"Player37",57]
[null,null,null,null,null,null,null,null,null,null,null,null,null,null,null,null,"Player7",44,null,"Player34",56]
[null,null,null,null,null,null,null,null,null,null,null,null,null,null,null,null,"Player1",44,null,"Player16",56]
[null,null,null,null,null,null,null,null,null,null,null,null,null,null,null,null,"Player15",43,null,"Player1",54]
[null,null,null,null,null,null,null,null,null,null,null,null,null,null,null,null,"Player25",43,null,"Player29",54]
[null,null,null,null,null,null,null,null,null,null,null,null,null,null,null,null,"Player31",43,null,"Player27",53]
[null,null,null,null,null,null,null,null,null,null,null,null,null,null,null,null,"Player23",43,null,"Player23",53]
[null,null,null,null,null,null,null,null,null,null,null,null,null,null,null,null,"Player40",42,null,"Player15",52]
[null,null,null,null,null,null,null,null,null,null,null,null,null,null,null,null,"Player8",40,null,"Player4",52]
[null,null,null,null,null,null,null,null,null,null,null,null,null,null,null,null,"Player38",36,null,"Player8",46]
[null,null,null,null,null,null,null,null,null,null,null,null,null,null,null,null,"Player29",35,null,"Player38",43]

{"sheet":"Round6","index":11,"n_rows":41,"n_cols":21,"rows_kept":41,"cut":false,"hidden":false,"merged":[]}
["Swaps: 2","Home Player","Away Player","Home Points","Away Points","Home TD","Away TD","Home Cas","Away Cas","Home Bonus1","Away Bonus1","Home Bonus2","Away Bonus2",null,null,null,"Points Before Games",null,null,"Points After Games"]
[null,"Player24","Player11",{"$f":"fctScore(F2,G2,H2,J2,L2)","v":5},{"$f":"fctScore(G2,F2,I2,K2,M2)","v":12},2,3,2,3,2,4,4,2,null,null,null,"Player24",86,null,"Player24",95]
[null,"Player13","Player20",{"$f":"fctScore(F3,G3,H3,J3,L3)","v":9},{"$f":"fctScore(G3,F3,I3,K3,M3)","v":9},4,4,6,5,2,5,5,3,null,null,null,"Player11",78,null,"Player11",94]
[null,"Player36","Player18",12,5,4,3,3,1,6,2,4,4,null,null,null,"Player13",78,null,"Player36",92]
[null,"Player30","Player28",4,15,1,4,5,5,3,1,3,4,null,null,null,"Player20",77,null,"Player13",91]
[null,"Player2","Player22",2,14,1,3,1,2,2,6,4,2,null,null,null,"Player36",76,null,"Player20",90]
[null,"Player10","Player39",7,9,3,3,1,3,3,6,2,2,null,null,null,"Player18",73,null,"Player28",88]
[null,"Player5","Player3",9,9,3,3,3,3,2,1,4,3,null,null,null,"Player30",72,null,"Player22",87]
[null,"Player17","Player9",7,12,4,5,3,4,3,1,1,2,null,null,null,"Player28",70,null,"Player18",82]
[null,"Player12","Player7",4,14,2,5,2,2,1,4,5,3,null,null,null,"Player2",69,null,"Player39",82]
[null,"Player21","Player6",7,10,5,6,3,1,4,2,2,4,null,null,null,"Player22",69,null,"Player5",81]
[null,"Player25","Player14",8,9,3,3,2,5,2,3,4,4,null,null,null,"Player10",69,null,"Player9",81]
[null,"Player31","Player35",14,2,4,1,2,1,5,5,2,2,null,null,null,"Player39",69,null,"Player7",81]
[null,"Player19","Player32",15,5,6,2,3,3,2,6,4,3,null,null,null,"Player5",68,null,"Player19",80]
[null,"Player26","Player40",3,15,2,5,1,5,4,2,6,3,null,null,null,"Player3",67,null,"Player30",80]
[null,"Player33","Player37",11,7,4,3,2,4,4,3,4,5,null,null,null,"Player17",67,null,"Player10",80]
[null,"Player34","Player29",3,9,1,2,1,1,4,6,2,3,null,null,null,"Player9",66,null,"Player31",80]
[null,"Player16","Player1",14,6,5,3,2,5,1,1,6,5,null,null,null,"Player12",65,null,"Player40",80]
[null,"Player27","Player23",6,12,5,6,2,4,4,6,3,1,null,null,null,"Player7",63,null,"Player3",79]
[null,"Player15","Player4",14,5,5,2,2,4,3,3,5,4,null,null,null,"Player21",62,null,"Player17",77]
[null,"Player8","Player38",12,7,6,5,3,5,4,3,1,1,null,null,null,"Player6",62,null,"Player6",76]
[null,null,null,null,null,null,null,null,null,null,null,null,null,null,null,null,"Player25",62,null,"Player2",75]
[null,null,null,null,null,null,null,null,null,null,null,null,null,null,null,null,"Player14",62,null,"Player14",75]
[null,null,null,null,null,null,null,null,null,null,null,null,null,null,null,null,"Player31",62,null,"Player25",74]
[null,null,null,null,null,null,null,null,null,null,null,null,null,null,null,null,"Player35",62,null,"Player33",74]
[null,null,null,null,null,null,null,null,null,null,null,null,null,null,null,null,"Player19",61,null,"Player21",73]
[null,null,null,null,null,null,null,null,null,null,null,null,null,null,null,null,"Player32",61,null,"Player16",73]
[null,null,null,null,null,null,null,null,null,null,null,null,null,null,null,null,"Player26",61,null,"Player12",72]
[null,null,null,null,null,null,null,null,null,null,null,null,null,null,null,null,"Player40",61,null,"Player32",70]
[null,null,null,null,null,null,null,null,null,null,null,null,null,null,null,null,"Player33",59,null,"Player15",70]
[null,null,null,null,null,null,null,null,null,null,null,null,null,null,null,null,"Player37",57,null,"Player26",68]
[null,null,null,null,null,null,null,null,null,null,null,null,null,null,null,null,"Player34",56,null,"Player23",68]
[null,null,null,null,null,null,null,null,null,null,null,null,null,null,null,null,"Player16",56,null,"Player35",68]
[null,null,null,null,null,null,null,null,null,null,null,null,null,null,null,null,"Player1",54,null,"Player37",68]
[null,null,null,null,null,null,null,null,null,null,null,null,null,null,null,null,"Player29",54,null,"Player29",67]
[null,null,null,null,null,null,null,null,null,null,null,null,null,null,null,null,"Player27",53,null,"Player27",63]
[null,null,null,null,null,null,null,null,null,null,null,null,null,null,null,null,"Player23",53,null,"Player34",63]
[null,null,null,null,null,null,null,null,null,null,null,null,null,null,null,null,"Player15",52,null,"Player1",63]
[null,null,null,null,null,null,null,null,null,null,null,null,null,null,null,null,"Player4",52,null,"Player4",61]
[null,null,null,null,null,null,null,null,null,null,null,null,null,null,null,null,"Player8",46,null,"Player8",61]
[null,null,null,null,null,null,null,null,null,null,null,null,null,null,null,null,"Player38",43,null,"Player38",53]

{"sheet":"Round7","index":12,"n_rows":0,"n_cols":0,"rows_kept":0,"cut":false,"hidden":false,"merged":[]}

{"sheet":"Round8","index":13,"n_rows":0,"n_cols":0,"rows_kept":0,"cut":false,"hidden":false,"merged":[]}

{"sheet":"Round9","index":14,"n_rows":0,"n_cols":0,"rows_kept":0,"cut":false,"hidden":false,"merged":[]}